[Event "*** Titled Tuesday Blitz"]
[Site "Chess.com"]
[Date "2020.05.05"]
[Round "5"]
[White "ThePatrick27"]
[Black "GuerrieroFromLevant"]
[Result "1-0"]
[WhiteElo "2531"]
[BlackElo "2373"]
[TimeControl "180+1"]
[EndTime "10:57:34 PDT"]
[Termination "ThePatrick27 won by checkmate"]

1. d4 {[%clk 0:03:00.2]} 1... d5 {[%clk 0:02:58.1]} 2. c4 {[%clk 0:03:00.3]}
2... e6 {[%clk 0:02:58]} 3. Nf3 {[%clk 0:02:58.4]} 3... c5 {[%clk 0:02:57.9]} 4.
cxd5 {[%clk 0:02:55.2]} 4... exd5 {[%clk 0:02:58.8]} 5. Nc3 {[%clk 0:02:55.3]}
5... Nc6 {[%clk 0:02:57.9]} 6. g3 {[%clk 0:02:55.6]} 6... Nf6 {[%clk 0:02:56.8]}
7. Bg2 {[%clk 0:02:55.9]} 7... Be7 {[%clk 0:02:57.4]} 8. O-O {[%clk 0:02:55.2]}
8... O-O {[%clk 0:02:58]} 9. dxc5 {[%clk 0:02:55.1]} 9... Bxc5 {[%clk
0:02:58.9]} 10. Na4 {[%clk 0:02:55.2]} 10... Be7 {[%clk 0:02:58.5]} 11. Be3
{[%clk 0:02:55.5]} 11... Bg4 {[%clk 0:02:59]} 12. Rc1 {[%clk 0:02:54]} 12... Re8
{[%clk 0:02:54.8]} 13. Bc5 {[%clk 0:02:43.3]} 13... Rc8 {[%clk 0:02:53.6]} 14.
Re1 {[%clk 0:02:39.7]} 14... b6 {[%clk 0:02:49.5]} 15. Bxe7 {[%clk 0:02:37.8]}
15... Qxe7 {[%clk 0:02:50.4]} 16. Nc3 {[%clk 0:02:33.5]} 16... Rcd8 {[%clk
0:02:42.8]} 17. Nd4 {[%clk 0:02:32.2]} 17... Ne5 {[%clk 0:02:26.4]} 18. Qa4
{[%clk 0:02:17.9]} 18... Rd7 {[%clk 0:01:57.3]} 19. Rcd1 {[%clk 0:02:06.9]}
19... h6 {[%clk 0:01:45.3]} 20. h3 {[%clk 0:01:57]} 20... Bh5 {[%clk 0:01:45.2]}
21. Kh1 {[%clk 0:01:53.1]} 21... Bg6 {[%clk 0:01:43.9]} 22. Nc6 {[%clk
0:01:11.8]} 22... Nxc6 {[%clk 0:01:43.1]} 23. Qxc6 {[%clk 0:01:12.7]} 23... d4
{[%clk 0:01:39.8]} 24. Nb5 {[%clk 0:01:05.1]} 24... Red8 {[%clk 0:01:37.5]} 25.
Rc1 {[%clk 0:00:42.9]} 25... a6 {[%clk 0:01:26.5]} 26. Na3 {[%clk 0:00:41.6]}
26... Rd6 {[%clk 0:01:23.5]} 27. Qa4 {[%clk 0:00:36.6]} 27... b5 {[%clk
0:01:23]} 28. Qb4 {[%clk 0:00:36.4]} 28... Re6 {[%clk 0:01:20.4]} 29. Qxe7
{[%clk 0:00:36]} 29... Rxe7 {[%clk 0:01:21.3]} 30. Rc6 {[%clk 0:00:25.1]} 30...
Be4 {[%clk 0:01:15.9]} 31. Bxe4 {[%clk 0:00:24.4]} 31... Nxe4 {[%clk 0:01:16.8]}
32. Kg2 {[%clk 0:00:22.9]} 32... Nd2 {[%clk 0:00:56.5]} 33. Rxa6 {[%clk
0:00:17.9]} 33... d3 {[%clk 0:00:53.6]} 34. e3 {[%clk 0:00:18.4]} 34... b4
{[%clk 0:00:50.2]} 35. Nb1 {[%clk 0:00:16.2]} 35... Nc4 {[%clk 0:00:50]} 36. b3
{[%clk 0:00:15.6]} 36... d2 {[%clk 0:00:48.4]} 37. Rd1 {[%clk 0:00:14.9]} 37...
Ne5 {[%clk 0:00:18.5]} 38. Rxd2 {[%clk 0:00:14.8]} 38... Rc8 {[%clk 0:00:19.1]}
39. Rd1 {[%clk 0:00:10.9]} 39... Rec7 {[%clk 0:00:18.5]} 40. Ra5 {[%clk
0:00:08.3]} 40... f6 {[%clk 0:00:18.4]} 41. Rad5 {[%clk 0:00:06.9]} 41... Rc2
{[%clk 0:00:17.8]} 42. Rd8+ {[%clk 0:00:07.1]} 42... Rxd8 {[%clk 0:00:16.8]} 43.
Rxd8+ {[%clk 0:00:08]} 43... Kh7 {[%clk 0:00:17.5]} 44. Nd2 {[%clk 0:00:08.9]}
44... Rxa2 {[%clk 0:00:17.1]} 45. f4 {[%clk 0:00:08.8]} 45... Nc6 {[%clk
0:00:16.6]} 46. Rd3 {[%clk 0:00:07.8]} 46... Rc2 {[%clk 0:00:15.5]} 47. Kf3
{[%clk 0:00:07.9]} 47... Na5 {[%clk 0:00:15.9]} 48. e4 {[%clk 0:00:07]} 48...
Rc3 {[%clk 0:00:15.7]} 49. Ke3 {[%clk 0:00:07.7]} 49... Rc2 {[%clk 0:00:16]} 50.
g4 {[%clk 0:00:07.5]} 50... Kg6 {[%clk 0:00:15.4]} 51. f5+ {[%clk 0:00:07.6]}
51... Kg5 {[%clk 0:00:16]} 52. Nf3# {[%clk 0:00:08]} 1-0

[Event "*** Titled Tuesday Blitz"]
[Site "Chess.com"]
[Date "2020.05.05"]
[Round "5"]
[White "Trickov"]
[Black "warmoatmeal"]
[Result "1-0"]
[WhiteElo "2294"]
[BlackElo "2035"]
[TimeControl "180+1"]
[EndTime "10:57:34 PDT"]
[Termination "Trickov won on time"]

1. d4 {[%clk 0:02:57.4]} 1... Nf6 {[%clk 0:02:59.7]} 2. Nf3 {[%clk 0:02:57.5]}
2... d5 {[%clk 0:02:59]} 3. c4 {[%clk 0:02:57.1]} 3... e6 {[%clk 0:02:58.8]} 4.
g3 {[%clk 0:02:56.6]} 4... Be7 {[%clk 0:02:58.7]} 5. Bg2 {[%clk 0:02:55.4]} 5...
O-O {[%clk 0:02:59.1]} 6. Qc2 {[%clk 0:02:55.1]} 6... dxc4 {[%clk 0:03:00]} 7.
Qxc4 {[%clk 0:02:54.4]} 7... a6 {[%clk 0:03:00.6]} 8. O-O {[%clk 0:02:54.2]}
8... b5 {[%clk 0:03:01]} 9. Qc2 {[%clk 0:02:53.8]} 9... Bb7 {[%clk 0:03:01.7]}
10. Rd1 {[%clk 0:02:53.3]} 10... Nbd7 {[%clk 0:03:01.7]} 11. a3 {[%clk 0:02:48]}
11... Be4 {[%clk 0:02:52]} 12. Qb3 {[%clk 0:02:44.7]} 12... c5 {[%clk
0:02:45.4]} 13. Nc3 {[%clk 0:02:37]} 13... c4 {[%clk 0:02:38.3]} 14. Qa2 {[%clk
0:02:36.5]} 14... Bb7 {[%clk 0:02:38.3]} 15. Bf4 {[%clk 0:02:30.7]} 15... Qb6
{[%clk 0:02:31.1]} 16. Rac1 {[%clk 0:02:19.5]} 16... Rfd8 {[%clk 0:02:26.6]} 17.
Qb1 {[%clk 0:02:08.3]} 17... a5 {[%clk 0:02:01.6]} 18. Be3 {[%clk 0:01:30.9]}
18... Nd5 {[%clk 0:01:55.9]} 19. Nxd5 {[%clk 0:01:26.1]} 19... Bxd5 {[%clk
0:01:56.8]} 20. Bf4 {[%clk 0:01:24.1]} 20... Nf6 {[%clk 0:01:56.5]} 21. Be5
{[%clk 0:01:13.7]} 21... Rac8 {[%clk 0:01:50.7]} 22. Ne1 {[%clk 0:01:04.4]}
22... Bxg2 {[%clk 0:01:50.2]} 23. Nxg2 {[%clk 0:01:04.1]} 23... Ng4 {[%clk
0:01:41.5]} 24. Qe4 {[%clk 0:01:03]} 24... Nxe5 {[%clk 0:01:40.2]} 25. dxe5
{[%clk 0:00:58.2]} 25... Rxd1+ {[%clk 0:01:38.2]} 26. Rxd1 {[%clk 0:00:58]}
26... Rd8 {[%clk 0:01:39.1]} 27. Rxd8+ {[%clk 0:00:52.8]} 27... Qxd8 {[%clk
0:01:40]} 28. Ne3 {[%clk 0:00:52.7]} 28... Bc5 {[%clk 0:01:30.7]} 29. Kg2 {[%clk
0:00:42.7]} 29... Bxe3 {[%clk 0:01:24.8]} 30. Qxe3 {[%clk 0:00:42]} 30... Qd5+
{[%clk 0:01:24.7]} 31. f3 {[%clk 0:00:41.2]} 31... h6 {[%clk 0:01:23.2]} 32. Qc3
{[%clk 0:00:39.6]} 32... Qc5 {[%clk 0:01:15.8]} 33. Qxa5 {[%clk 0:00:30.5]}
33... Qxe5 {[%clk 0:01:13.2]} 34. Qd8+ {[%clk 0:00:30.2]} 34... Kh7 {[%clk
0:01:13.1]} 35. Qd2 {[%clk 0:00:30.8]} 35... g6 {[%clk 0:01:12]} 36. Kf2 {[%clk
0:00:30]} 36... Qc5+ {[%clk 0:01:11]} 37. Kg2 {[%clk 0:00:29.1]} 37... Kg7
{[%clk 0:01:10.6]} 38. Qc3+ {[%clk 0:00:28.7]} 38... e5 {[%clk 0:01:09.3]} 39.
b3 {[%clk 0:00:25.6]} 39... Kh7 {[%clk 0:00:09.8]} 40. bxc4 {[%clk 0:00:24.1]}
40... bxc4 {[%clk 0:00:10.7]} 41. a4 {[%clk 0:00:23]} 41... Qc6 {[%clk
0:00:08.8]} 42. a5 {[%clk 0:00:21]} 42... Qb5 {[%clk 0:00:08.1]} 43. Kf2 {[%clk
0:00:19.7]} 43... Kg7 {[%clk 0:00:06.9]} 44. f4 {[%clk 0:00:17.2]} 44... f6
{[%clk 0:00:03.6]} 45. fxe5 {[%clk 0:00:16.5]} 45... fxe5 {[%clk 0:00:04.5]} 46.
Qa1 {[%clk 0:00:16]} 46... Kf7 {[%clk 0:00:03.5]} 47. a6 {[%clk 0:00:15.7]}
47... Qb6+ {[%clk 0:00:03.1]} 48. Kf3 {[%clk 0:00:15.1]} 48... Qa7 {[%clk
0:00:02.2]} 49. Ke4 {[%clk 0:00:11.8]} 1-0

[Event "*** Titled Tuesday Blitz"]
[Site "Chess.com"]
[Date "2020.05.05"]
[Round "5"]
[White "KingChess345"]
[Black "boasovietica"]
[Result "1-0"]
[WhiteElo "2197"]
[BlackElo "2452"]
[TimeControl "180+1"]
[EndTime "10:57:35 PDT"]
[Termination "KingChess345 won by resignation"]

1. d4 {[%clk 0:03:00.9]} 1... Nf6 {[%clk 0:02:54.4]} 2. Nf3 {[%clk 0:03:01.2]}
2... g6 {[%clk 0:02:53.5]} 3. g3 {[%clk 0:03:01.8]} 3... Bg7 {[%clk 0:02:52.8]}
4. Bg2 {[%clk 0:03:02.4]} 4... O-O {[%clk 0:02:52]} 5. O-O {[%clk 0:03:03]} 5...
d6 {[%clk 0:02:51.8]} 6. c4 {[%clk 0:03:03.8]} 6... Nc6 {[%clk 0:02:51.1]} 7.
Nc3 {[%clk 0:03:04.4]} 7... Bg4 {[%clk 0:02:51.3]} 8. d5 {[%clk 0:02:55.2]} 8...
Na5 {[%clk 0:02:50.2]} 9. Nd2 {[%clk 0:02:47.6]} 9... c5 {[%clk 0:02:48]} 10.
Qc2 {[%clk 0:02:43.4]} 10... a6 {[%clk 0:02:46.3]} 11. Re1 {[%clk 0:02:39]}
11... b5 {[%clk 0:02:36]} 12. cxb5 {[%clk 0:02:32.8]} 12... axb5 {[%clk
0:02:35.7]} 13. Nxb5 {[%clk 0:02:31.5]} 13... Qb6 {[%clk 0:02:36.1]} 14. Nc3
{[%clk 0:02:28.3]} 14... Rfb8 {[%clk 0:02:35]} 15. b3 {[%clk 0:02:01.9]} 15...
c4 {[%clk 0:01:58.1]} 16. bxc4 {[%clk 0:01:17.1]} 16... Qa6 {[%clk 0:01:55.4]}
17. e4 {[%clk 0:00:39.1]} 17... Nxc4 {[%clk 0:01:38.2]} 18. Nxc4 {[%clk
0:00:24]} 18... Qxc4 {[%clk 0:01:39.1]} 19. Bf1 {[%clk 0:00:22.8]} 19... Qc7
{[%clk 0:01:34.6]} 20. Bd2 {[%clk 0:00:18.9]} 20... Nxe4 {[%clk 0:01:08.4]} 21.
Qxe4 {[%clk 0:00:13.2]} 21... Bxc3 {[%clk 0:00:32.2]} 22. Bxc3 {[%clk
0:00:14.1]} 22... Bf5 {[%clk 0:00:26.7]} 23. Qd4 {[%clk 0:00:14]} 23... f6
{[%clk 0:00:22.5]} 24. Bd3 {[%clk 0:00:10.6]} 24... Bh3 {[%clk 0:00:18.1]} 25.
Bf1 {[%clk 0:00:09.4]} 25... Bf5 {[%clk 0:00:17.4]} 26. Re2 {[%clk 0:00:09.4]}
26... Ra3 {[%clk 0:00:15.3]} 27. Re3 {[%clk 0:00:07.3]} 27... Rc8 {[%clk
0:00:14.2]} 28. Bb2 {[%clk 0:00:06.7]} 28... Ra5 {[%clk 0:00:13.3]} 29. Rae1
{[%clk 0:00:05.5]} 29... Re8 {[%clk 0:00:11.7]} 30. Bg2 {[%clk 0:00:05.5]} 30...
Rc5 {[%clk 0:00:11.5]} 31. Qxf6 {[%clk 0:00:05.1]} 31... exf6 {[%clk 0:00:10.3]}
32. Rxe8+ {[%clk 0:00:05.7]} 32... Kf7 {[%clk 0:00:10.8]} 33. Rh8 {[%clk
0:00:05.6]} 33... g5 {[%clk 0:00:10.2]} 34. g4 {[%clk 0:00:04.3]} 34... Bg6
{[%clk 0:00:10.3]} 35. Ree8 {[%clk 0:00:04.6]} 35... Kg7 {[%clk 0:00:08.1]} 36.
Rhg8+ {[%clk 0:00:04.6]} 36... Kh6 {[%clk 0:00:08]} 37. Bxf6 {[%clk 0:00:03]}
37... Rc1+ {[%clk 0:00:05.7]} 38. Bf1 {[%clk 0:00:02.3]} 38... Rxf1+ {[%clk
0:00:05.9]} 39. Kxf1 {[%clk 0:00:01.8]} 39... Qc4+ {[%clk 0:00:06.2]} 40. Kg2
{[%clk 0:00:02.3]} 40... Qxg4+ {[%clk 0:00:06.3]} 41. Kf1 {[%clk 0:00:02.8]}
41... Bd3+ {[%clk 0:00:06.3]} 42. Ke1 {[%clk 0:00:02.9]} 42... Qg1+ {[%clk
0:00:05.8]} 43. Kd2 {[%clk 0:00:03.3]} 43... Qxf2+ {[%clk 0:00:06.2]} 44. Kxd3
{[%clk 0:00:03.7]} 44... Qxf6 {[%clk 0:00:06.6]} 45. Re6 {[%clk 0:00:04.2]} 1-0

[Event "*** Titled Tuesday Blitz"]
[Site "Chess.com"]
[Date "2020.05.05"]
[Round "5"]
[White "gemarin"]
[Black "PowerThinking2650"]
[Result "1-0"]
[WhiteElo "1969"]
[BlackElo "2273"]
[TimeControl "180+1"]
[EndTime "10:57:35 PDT"]
[Termination "gemarin won on time"]

1. d4 {[%clk 0:03:00.9]} 1... Nf6 {[%clk 0:02:59.9]} 2. c4 {[%clk 0:02:59.8]}
2... g6 {[%clk 0:03:00]} 3. Nc3 {[%clk 0:02:58.5]} 3... Bg7 {[%clk 0:03:00.3]}
4. e4 {[%clk 0:02:57.6]} 4... d6 {[%clk 0:03:00.8]} 5. Nf3 {[%clk 0:02:57.2]}
5... O-O {[%clk 0:03:01.3]} 6. Be2 {[%clk 0:02:56.7]} 6... e5 {[%clk 0:03:01.8]}
7. d5 {[%clk 0:02:56.8]} 7... a5 {[%clk 0:02:57.8]} 8. Bg5 {[%clk 0:02:55.6]}
8... h6 {[%clk 0:02:56.8]} 9. Bh4 {[%clk 0:02:55.2]} 9... Na6 {[%clk 0:02:54.4]}
10. Nd2 {[%clk 0:02:54.6]} 10... Qe8 {[%clk 0:02:51.9]} 11. O-O {[%clk
0:02:43.3]} 11... Nh7 {[%clk 0:02:51.7]} 12. Rb1 {[%clk 0:02:34.5]} 12... h5
{[%clk 0:02:48.4]} 13. f3 {[%clk 0:02:24.7]} 13... Bh6 {[%clk 0:02:47.4]} 14.
Bf2 {[%clk 0:02:23.2]} 14... Qe7 {[%clk 0:02:44.2]} 15. a3 {[%clk 0:02:21.2]}
15... h4 {[%clk 0:02:38.2]} 16. b4 {[%clk 0:02:15]} 16... axb4 {[%clk
0:02:36.6]} 17. axb4 {[%clk 0:02:14.2]} 17... Qg5 {[%clk 0:02:36.2]} 18. f4
{[%clk 0:01:36.4]} 18... Qxf4 {[%clk 0:02:07.1]} 19. Nf3 {[%clk 0:01:35.8]}
19... h3 {[%clk 0:01:56.1]} 20. g3 {[%clk 0:01:29.5]} 20... Qf6 {[%clk
0:01:54.5]} 21. c5 {[%clk 0:01:21.5]} 21... Qe7 {[%clk 0:01:49.9]} 22. Ra1
{[%clk 0:01:17.9]} 22... Bg4 {[%clk 0:01:40.4]} 23. c6 {[%clk 0:01:14.1]} 23...
bxc6 {[%clk 0:01:07.9]} 24. Rxa6 {[%clk 0:01:07.2]} 24... Rxa6 {[%clk
0:01:03.7]} 25. Bxa6 {[%clk 0:01:06]} 25... f5 {[%clk 0:01:03.4]} 26. Be2 {[%clk
0:01:03.6]} 26... fxe4 {[%clk 0:00:59.4]} 27. Nxe4 {[%clk 0:01:02.8]} 27... cxd5
{[%clk 0:00:52.7]} 28. Qxd5+ {[%clk 0:01:01.6]} 28... Be6 {[%clk 0:00:52.6]} 29.
Qc6 {[%clk 0:00:55.4]} 29... Qf7 {[%clk 0:00:36.3]} 30. Nc3 {[%clk 0:00:40.2]}
30... Nf6 {[%clk 0:00:29.1]} 31. Ne1 {[%clk 0:00:18.4]} 31... Ng4 {[%clk
0:00:19.9]} 32. Ba7 {[%clk 0:00:16]} 32... Qe7 {[%clk 0:00:14.5]} 33. Bc4 {[%clk
0:00:15]} 33... Rxf1+ {[%clk 0:00:11.6]} 34. Bxf1 {[%clk 0:00:11.7]} 34... Qf7
{[%clk 0:00:11.6]} 35. Bxh3 {[%clk 0:00:11]} 35... Ne3 {[%clk 0:00:09.4]} 36.
Bxe6 {[%clk 0:00:08.9]} 36... Qxe6 {[%clk 0:00:09.5]} 37. Qf3 {[%clk 0:00:07.3]}
37... Nf5 {[%clk 0:00:07.6]} 38. Qd5 {[%clk 0:00:07]} 38... Qxd5 {[%clk
0:00:07.3]} 39. Nxd5 {[%clk 0:00:07]} 39... c6 {[%clk 0:00:07.7]} 40. Nc3 {[%clk
0:00:06.6]} 40... d5 {[%clk 0:00:07.8]} 41. Ne2 {[%clk 0:00:06.2]} 41... d4
{[%clk 0:00:07.1]} 42. Bc5 {[%clk 0:00:06.1]} 42... Be3+ {[%clk 0:00:04.8]} 43.
Kg2 {[%clk 0:00:05.7]} 43... Bd2 {[%clk 0:00:04.1]} 44. Nf3 {[%clk 0:00:05]}
44... Be3 {[%clk 0:00:01.1]} 45. Nxe5 {[%clk 0:00:04.5]} 45... d3 {[%clk
0:00:01.1]} 46. Nxd3 {[%clk 0:00:04.4]} 1-0

[Event "*** Titled Tuesday Blitz"]
[Site "Chess.com"]
[Date "2020.05.05"]
[Round "5"]
[White "Semen_Khanin"]
[Black "matiss90"]
[Result "0-1"]
[WhiteElo "2679"]
[BlackElo "2510"]
[TimeControl "180+1"]
[EndTime "10:57:36 PDT"]
[Termination "matiss90 won by resignation"]

1. d4 {[%clk 0:03:00.9]} 1... Nf6 {[%clk 0:02:59.7]} 2. c4 {[%clk 0:02:59.9]}
2... g6 {[%clk 0:02:58.8]} 3. Nc3 {[%clk 0:02:58.4]} 3... Bg7 {[%clk 0:02:59.4]}
4. e4 {[%clk 0:02:58.6]} 4... O-O {[%clk 0:02:59.9]} 5. Be2 {[%clk 0:02:58.7]}
5... d6 {[%clk 0:03:00.5]} 6. Be3 {[%clk 0:02:59.2]} 6... Na6 {[%clk 0:02:58.5]}
7. h4 {[%clk 0:02:58.1]} 7... e5 {[%clk 0:02:58.4]} 8. h5 {[%clk 0:02:57.1]}
8... exd4 {[%clk 0:02:57.3]} 9. Bxd4 {[%clk 0:02:57.5]} 9... Nc5 {[%clk
0:02:57.6]} 10. hxg6 {[%clk 0:02:51.8]} 10... hxg6 {[%clk 0:02:55.7]} 11. f3
{[%clk 0:02:50.7]} 11... Ne6 {[%clk 0:02:48.3]} 12. Be3 {[%clk 0:02:50.3]} 12...
c6 {[%clk 0:02:43.5]} 13. Qd2 {[%clk 0:02:50.1]} 13... Re8 {[%clk 0:02:26.9]}
14. O-O-O {[%clk 0:02:43.3]} 14... d5 {[%clk 0:02:26]} 15. cxd5 {[%clk
0:02:40.8]} 15... cxd5 {[%clk 0:02:26]} 16. e5 {[%clk 0:02:40.5]} 16... d4
{[%clk 0:02:10.8]} 17. exf6 {[%clk 0:02:24.2]} 17... Bxf6 {[%clk 0:01:59]} 18.
Ne4 {[%clk 0:01:57.2]} 18... dxe3 {[%clk 0:01:52]} 19. Qd6 {[%clk 0:00:52.4]}
19... Bg7 {[%clk 0:01:29.1]} 20. Nh3 {[%clk 0:00:25.5]} 20... Qb6 {[%clk
0:00:59.5]} 21. Qxb6 {[%clk 0:00:21.2]} 21... axb6 {[%clk 0:01:00.4]} 22. Kb1
{[%clk 0:00:21.7]} 22... Nd4 {[%clk 0:00:57.1]} 23. Bc4 {[%clk 0:00:19.3]} 23...
Bf5 {[%clk 0:00:53.1]} 24. Ng5 {[%clk 0:00:18.6]} 24... Re7 {[%clk 0:00:51.4]}
25. g4 {[%clk 0:00:08.9]} 25... Bxe4+ {[%clk 0:00:41.2]} 26. fxe4 {[%clk
0:00:09.2]} 26... Bf6 {[%clk 0:00:24.5]} 27. Nxf7 {[%clk 0:00:06.9]} 27... Rxf7
{[%clk 0:00:19.7]} 28. Rdf1 {[%clk 0:00:05.9]} 28... b5 {[%clk 0:00:09.4]} 29.
Bxf7+ {[%clk 0:00:05.3]} 29... Kg7 {[%clk 0:00:07.2]} 30. g5 {[%clk 0:00:06.2]}
30... Bxg5 {[%clk 0:00:06.3]} 31. Rhg1 {[%clk 0:00:06.2]} 31... e2 {[%clk
0:00:05.7]} 32. Re1 {[%clk 0:00:05.6]} 32... Bd2 {[%clk 0:00:04.2]} 33. Rxg6+
{[%clk 0:00:02.9]} 33... Kxf7 {[%clk 0:00:04]} 34. Rgg1 {[%clk 0:00:03.8]} 34...
Bxe1 {[%clk 0:00:04.1]} 35. Rxe1 {[%clk 0:00:04]} 35... Ke6 {[%clk 0:00:04.6]}
36. Kc1 {[%clk 0:00:04.9]} 36... Rc8+ {[%clk 0:00:04.6]} 37. Kb1 {[%clk
0:00:05.2]} 37... Ke5 {[%clk 0:00:05.5]} 38. b3 {[%clk 0:00:05.1]} 38... Kxe4
{[%clk 0:00:05.8]} 39. Kb2 {[%clk 0:00:06]} 39... Kd3 {[%clk 0:00:06]} 40. Rb1
{[%clk 0:00:06.9]} 40... Kd2 {[%clk 0:00:06.1]} 41. Ka3 {[%clk 0:00:07.3]} 41...
Nc2+ {[%clk 0:00:05.9]} 42. Kb2 {[%clk 0:00:06.9]} 42... b4 {[%clk 0:00:06.2]}
43. Rc1 {[%clk 0:00:06]} 43... e1=Q {[%clk 0:00:05.5]} 44. Rxe1 {[%clk
0:00:05.9]} 44... Nxe1 {[%clk 0:00:05.7]} 0-1

[Event "*** Titled Tuesday Blitz"]
[Site "Chess.com"]
[Date "2020.05.05"]
[Round "5"]
[White "Matibar"]
[Black "regular_legs"]
[Result "0-1"]
[WhiteElo "2795"]
[BlackElo "2609"]
[TimeControl "180+1"]
[EndTime "10:57:37 PDT"]
[Termination "regular_legs won by resignation"]

1. f4 {[%clk 0:02:59.8]} 1... d5 {[%clk 0:02:54.7]} 2. g3 {[%clk 0:02:58.8]}
2... g6 {[%clk 0:02:54]} 3. Bg2 {[%clk 0:02:59]} 3... Bg7 {[%clk 0:02:54.9]} 4.
Nf3 {[%clk 0:02:59.4]} 4... c5 {[%clk 0:02:54.2]} 5. d3 {[%clk 0:02:57.9]} 5...
Nf6 {[%clk 0:02:54.5]} 6. O-O {[%clk 0:02:57.2]} 6... O-O {[%clk 0:02:54.8]} 7.
e3 {[%clk 0:02:57.1]} 7... b6 {[%clk 0:02:48.2]} 8. Qe2 {[%clk 0:02:46]} 8...
Bb7 {[%clk 0:02:47.1]} 9. Ne5 {[%clk 0:02:46.1]} 9... Nbd7 {[%clk 0:02:43]} 10.
Nd2 {[%clk 0:02:46.1]} 10... Qc7 {[%clk 0:02:40.8]} 11. Ndf3 {[%clk 0:02:45.7]}
11... Rad8 {[%clk 0:02:26.1]} 12. Bd2 {[%clk 0:02:03.7]} 12... Nxe5 {[%clk
0:02:25.1]} 13. Nxe5 {[%clk 0:01:57.5]} 13... Nd7 {[%clk 0:02:24.9]} 14. Nxd7
{[%clk 0:01:50.9]} 14... Qxd7 {[%clk 0:02:22.6]} 15. c3 {[%clk 0:01:27.3]} 15...
e5 {[%clk 0:02:12.2]} 16. fxe5 {[%clk 0:01:26.1]} 16... Bxe5 {[%clk 0:02:13.1]}
17. d4 {[%clk 0:01:26.5]} 17... Bg7 {[%clk 0:02:12.4]} 18. Rf2 {[%clk
0:01:23.8]} 18... f5 {[%clk 0:02:09.5]} 19. h3 {[%clk 0:01:18.4]} 19... Rde8
{[%clk 0:02:01.5]} 20. Qf1 {[%clk 0:01:14.2]} 20... Bh6 {[%clk 0:01:59.2]} 21.
Re1 {[%clk 0:01:12.8]} 21... Rf7 {[%clk 0:01:34.7]} 22. g4 {[%clk 0:01:04.3]}
22... fxg4 {[%clk 0:01:31.1]} 23. Rxf7 {[%clk 0:01:04.8]} 23... Qxf7 {[%clk
0:01:32]} 24. Qxf7+ {[%clk 0:01:05.2]} 24... Kxf7 {[%clk 0:01:32.9]} 25. hxg4
{[%clk 0:01:05.5]} 25... cxd4 {[%clk 0:01:25.7]} 26. cxd4 {[%clk 0:01:06.4]}
26... Rc8 {[%clk 0:01:26.3]} 27. Bc3 {[%clk 0:01:06.4]} 27... Ke6 {[%clk
0:01:21.5]} 28. Kf2 {[%clk 0:01:06.5]} 28... Bg5 {[%clk 0:01:18.3]} 29. Kg3
{[%clk 0:00:51.3]} 29... a5 {[%clk 0:01:09.6]} 30. Bf1 {[%clk 0:00:45.4]} 30...
Kd6 {[%clk 0:00:59.6]} 31. Bd3 {[%clk 0:00:40.1]} 31... Re8 {[%clk 0:00:59.7]}
32. Bd2 {[%clk 0:00:40.4]} 32... Bc6 {[%clk 0:00:57.6]} 33. Rh1 {[%clk 0:00:40]}
33... Bxe3 {[%clk 0:00:54.8]} 34. Bc3 {[%clk 0:00:30.7]} 34... Bg5 {[%clk
0:00:48.4]} 35. Kf2 {[%clk 0:00:26.1]} 35... Rf8+ {[%clk 0:00:46.1]} 36. Kg3
{[%clk 0:00:23.3]} 36... Re8 {[%clk 0:00:45.8]} 37. Kf2 {[%clk 0:00:23.5]} 37...
Re7 {[%clk 0:00:46.2]} 38. b4 {[%clk 0:00:21.8]} 38... Rf7+ {[%clk 0:00:41.9]}
39. Kg3 {[%clk 0:00:19.8]} 39... Re7 {[%clk 0:00:40.9]} 40. Kf2 {[%clk
0:00:19.6]} 40... Bd7 {[%clk 0:00:37.6]} 41. bxa5 {[%clk 0:00:18.9]} 41... bxa5
{[%clk 0:00:37.6]} 42. Bxa5 {[%clk 0:00:19]} 42... Be3+ {[%clk 0:00:37.8]} 43.
Kf3 {[%clk 0:00:18]} 43... Bxd4 {[%clk 0:00:37.9]} 44. Bb4+ {[%clk 0:00:16.5]}
44... Bc5 {[%clk 0:00:37.9]} 45. Bd2 {[%clk 0:00:17.2]} 45... Rf7+ {[%clk
0:00:33.1]} 46. Bf4+ {[%clk 0:00:16.5]} 46... Kc6 {[%clk 0:00:29]} 47. Rc1
{[%clk 0:00:17.1]} 47... g5 {[%clk 0:00:28.2]} 0-1